fUSD/lending_fUSD_20250806
["ID","MTS","AMOUNT","RATE_DAILY","PERIOD"]
[377590314,1754448747992,-944.69,0.00036986,14]
[377590315,1754448748001,-188.82731333,0.00036986,14]
[377590316,1754448748011,-400.0,0.00036986,14]
[377590317,1754448748021,-400.0,0.00036986,14]
[377590318,1754448748031,-1533.65,0.00036986,14]
[377590319,1754448748041,-564.92,0.00036986,14]
[377590320,1754448748050,-400.0,0.00036986,14]
[377590321,1754448748060,-1068.1,0.00036986,14]
[377590322,1754448748069,-400.0,0.00036986,14]
[377590323,1754448748079,-1225.03,0.00036986,14]
[377590324,1754448748089,-400.0,0.00036986,14]
[377590325,1754448748098,-400.0,0.00036986,14]
[377590326,1754448748107,-463.8,0.00036986,14]
[377590327,1754448748117,-423.39,0.00036986,14]
[377590328,1754448748128,-5248.2,0.00036986,14]
[377590329,1754448748137,-400.0,0.00036986,14]
[377590330,1754448748147,-400.0,0.00036986,14]
[377590331,1754448748156,-2409.79,0.00036986,14]
[377590332,1754448748165,-1276.5,0.00036986,14]
[377590333,1754448748175,-400.0,0.00036986,14]
[377590334,1754448748184,-400.0,0.00036986,14]
[377590335,1754448748194,-919.64,0.00036986,14]
[377590336,1754448748203,-465.73,0.00036986,14]
[377590337,1754448748212,-1930.39,0.00036986,14]
[377590338,1754448748221,-481.93,0.00036986,14]
[377590339,1754448748231,-680.58,0.00036986,14]
[377590340,1754448748239,-281.32,0.00036986,14]
[377590341,1754448748248,-1671.93,0.00036986,14]
[377590342,1754448748258,-2002.8,0.00036986,14]
[377590343,1754448748266,-400.0,0.00036986,14]
[377590344,1754448748275,-400.0,0.00036986,14]
[377590345,1754448748285,-1784.3,0.00036986,14]
[377590346,1754448748294,-1873.43,0.00036986,14]
[377590347,1754448748304,-3610.35,0.00036986,14]
[377590348,1754448748312,-1790.5,0.00036986,14]
[377590349,1754448748322,-400.0,0.00036986,14]
[377590350,1754448748331,-400.0,0.00036986,14]
[377590351,1754448748340,-400.0,0.00036986,14]
[377590352,1754448748349,-1409.58,0.00036986,14]
[377590353,1754448748359,-400.0,0.00036986,14]
[377590354,1754448748368,-589.06,0.00036986,14]
[377590355,1754448748377,-400.0,0.00036986,14]
[377590356,1754448748387,-769.03,0.00036986,14]
[377590357,1754448748396,-1264.89,0.00036986,14]
[377590358,1754448748406,-400.0,0.00036986,14]
[377590359,1754448748415,-493.42,0.00036986,14]
[377590360,1754448748425,-1966.76,0.00036986,14]
[377590361,1754448748434,-446.21,0.00036986,14]
[377590362,1754448748443,-1081.98,0.00036986,14]
[377590363,1754448748451,-2193.87,0.00036986,14]
[377590364,1754448748461,-974.88,0.00036986,14]
[377590365,1754448748471,-950.01,0.00036986,14]
[377590366,1754448748480,-662.34,0.00036986,14]
[377590367,1754448748490,-400.0,0.00036986,14]
[377590368,1754448748499,-2313.76,0.00036986,14]
[377590369,1754448748508,-861.94,0.00036986,14]
[377590370,1754448748518,-2151.64,0.00036986,14]
[377590371,1754448748527,-433.2,0.00036986,14]
[377590372,1754448748537,-400.0,0.00036986,14]
[377590373,1754448748547,-2093.1,0.00036986,14]
[377590374,1754448748556,-2798.78,0.00036986,14]
[377590375,1754448748565,-400.0,0.00036986,14]
[377590376,1754448748575,-400.0,0.00036986,14]
[377590377,1754448748585,-1160.89,0.00036986,14]
[377590378,1754448748594,-1069.38,0.00036986,14]
[377590379,1754448748603,-825.71,0.00036986,14]
[377590380,1754448748612,-1990.46,0.00036986,14]
[377590381,1754448748622,-400.0,0.00036986,14]
[377590382,1754448748631,-400.0,0.00036986,14]
[377590383,1754448748640,-400.0,0.00036986,14]
[377590384,1754448748650,-2866.67,0.00036986,14]
[377590385,1754448748659,-400.0,0.00036986,14]
[377590386,1754448748669,-552.31,0.00036986,14]
[377590387,1754448748678,-2248.31,0.00036986,14]
[377590388,1754448748687,-400.0,0.00036986,14]
[377590389,1754448748696,-400.0,0.00036986,14]
[377590390,1754448748705,-534.6,0.00036986,14]
[377590391,1754448748714,-2830.73,0.00036986,14]
[377590392,1754448748723,-400.0,0.00036986,14]
[377590393,1754448748733,-400.0,0.00036986,14]
[377590394,1754448748742,-877.07,0.00036986,14]
[377590395,1754448748751,-636.63,0.00036986,14]
[377590396,1754448748760,-1151.11,0.00036986,14]
[377590397,1754448748769,-1232.95,0.00036986,14]
[377590398,1754448748778,-404.16,0.00036986,14]
[377590399,1754448748787,-2812.46,0.00036986,14]
[377590400,1754448748796,-1463.25,0.00036986,14]
[377590401,1754448748806,-663.46,0.00036986,14]
[377590402,1754448748816,-2179.89,0.00036986,14]
[377590403,1754448748825,-400.0,0.00036986,14]
[377590404,1754448748835,-506.01,0.00036986,14]
[377590405,1754448748846,-4617.44,0.00036986,14]
[377590406,1754448748863,-400.0,0.00036986,14]
[377590407,1754448748875,-1734.55,0.00036986,14]
[377590408,1754448748885,-3963.12,0.00036986,14]
[377590409,1754448748895,-400.0,0.00036986,14]
[377590410,1754448748904,-400.0,0.00036986,14]
[377590411,1754448748914,-400.0,0.00036986,14]
[377590412,1754448748924,-2023.55,0.00036986,14]
[377590413,1754448748934,-534.1,0.00036986,14]
[377590414,1754448748946,-400.0,0.00036986,14]
[377590415,1754448748957,-2294.7,0.00036986,14]
[377590416,1754448748966,-400.0,0.00036986,14]
[377590417,1754448748976,-1545.14,0.00036986,14]
[377590418,1754448748986,-2092.3,0.00036986,14]
[377590419,1754448748995,-586.88,0.00036986,14]
[377590420,1754448749005,-523.66,0.00036986,14]
[377590421,1754448749015,-435.03,0.00036986,14]
[377590422,1754448749024,-1684.51,0.00036986,14]
[377590423,1754448749034,-933.36,0.00036986,14]
[377590424,1754448749044,-1056.52,0.00036986,14]
[377590425,1754448749054,-3017.99,0.00036986,14]
[377590426,1754448749063,-914.87,0.00036986,14]
[377590427,1754448749074,-611.39,0.00036986,14]
[377590428,1754448749084,-833.08,0.00036986,14]
[377590429,1754448749093,-796.41,0.00036986,14]
[377590430,1754448749103,-400.0,0.00036986,14]
[377590431,1754448749112,-1534.85,0.00036986,14]
[377590432,1754448749121,-400.0,0.00036986,14]
[377590433,1754448749131,-400.0,0.00036986,14]
[377590434,1754448749141,-1365.89,0.00036986,14]
[377590435,1754448749150,-2721.87,0.00036986,14]
[377590436,1754448749159,-1665.11,0.00036986,14]
[377590437,1754448749169,-1954.64,0.00036986,14]
[377590438,1754448749179,-3987.14,0.00036986,14]
[377590439,1754448749188,-5160.74,0.00036986,14]
[377590440,1754448749197,-2159.33,0.00036986,14]
[377590441,1754448749207,-400.0,0.00036986,14]
[377590442,1754448749216,-1952.38,0.00036986,14]
[377590443,1754448749226,-400.0,0.00036986,14]
[377590444,1754448749236,-1216.69,0.00036986,14]
[377590445,1754448749245,-1829.55,0.00036986,14]
[377590446,1754448749255,-2121.64,0.00036986,14]
[377590447,1754448749264,-601.08,0.00036986,14]
[377590448,1754448749274,-400.0,0.00036986,14]
[377590449,1754448749284,-2523.11,0.00036986,14]
[377590450,1754448749293,-2978.88,0.00036986,14]
[377590451,1754448749302,-945.39,0.00036986,14]
[377590452,1754448749312,-2518.04,0.00036986,14]
[377590453,1754448749322,-859.36,0.00036986,2]
[377590454,1754448749331,-793.99,0.00036986,14]
[377590455,1754448749341,-400.0,0.00036986,14]
[377590456,1754448749351,-532.72,0.00036986,14]
[377590457,1754448749360,-1289.03,0.00036986,14]
[377590458,1754448749369,-400.0,0.00036986,14]
[377590459,1754448749378,-400.0,0.00036986,14]
[377590460,1754448749388,-1073.41,0.00036986,14]
[377590461,1754448749397,-400.0,0.00036986,14]
[377590462,1754448749406,-412.5,0.00036986,14]
[377590463,1754448749415,-400.0,0.00036986,14]
[377590464,1754448749425,-400.0,0.00036986,14]
[377590465,1754448749434,-400.0,0.00036986,14]
[377590466,1754448749443,-400.0,0.00036986,14]
[377590467,1754448749452,-2539.32,0.00036986,14]
[377590468,1754448749461,-3437.75,0.00036986,14]
[377590469,1754448749471,-2655.03,0.00036986,14]
[377590470,1754448749479,-500.14,0.00036986,14]
[377590471,1754448749489,-1000.0,0.00036986,30]
[377590472,1754448749498,-2735.46,0.00036986,14]
[377590473,1754448749507,-400.0,0.00036986,14]
[377590474,1754448749517,-1245.68,0.00036986,14]
[377590475,1754448749527,-400.0,0.00036986,14]
[377590476,1754448749536,-828.5,0.00036986,14]
[377590477,1754448749545,-788.77,0.00036986,14]
[377590478,1754448749555,-3583.37,0.00036986,14]
[377590479,1754448749564,-4387.31,0.00036986,14]
[377590480,1754448749575,-1688.61,0.00036986,14]
[377590481,1754448749584,-3166.75,0.00036986,14]
[377590482,1754448749593,-3134.6,0.00036986,14]
[377590483,1754448749603,-400.0,0.00036986,14]
[377590484,1754448749612,-406.24,0.00036986,14]
[377590485,1754448749621,-400.0,0.00036986,14]
[377590486,1754448749630,-735.52,0.00036986,14]
[377590487,1754448749640,-400.0,0.00036986,14]
[377590488,1754448749649,-2255.41,0.00036986,14]
[377590489,1754448749658,-2297.5,0.00036986,14]
[377590490,1754448749667,-3216.0,0.00036986,14]
[377590491,1754448749679,-741.97,0.00036986,14]
[377590492,1754448749692,-654.96,0.00036986,14]
[377590493,1754448749701,-1206.25,0.00036986,14]
[377590494,1754448749710,-2750.06,0.00036986,14]
[377590495,1754448749720,-1381.51,0.00036986,14]
[377590496,1754448749729,-74281.09,0.00036986,14]
[377590497,1754448749738,-2322.06,0.00036986,14]
[377590498,1754448749747,-400.0,0.00036986,14]
[377590499,1754448749756,-841.14,0.00036986,14]
[377590500,1754448749766,-1570.84,0.00036986,14]
[377590501,1754448749776,-1828.82,0.00036986,14]
[377590502,1754448749786,-400.0,0.00036986,14]
[377590503,1754448749795,-400.0,0.00036986,14]
[377590504,1754448749804,-404.83012584,0.00036986,14]
[377590505,1754448749814,-519.39,0.00036986,14]
[377590506,1754448749824,-1544.56,0.00036986,14]
[377590507,1754448749833,-1492.94,0.00036986,14]
[377590508,1754448749843,-434.35,0.00036986,14]
[377590509,1754448749853,-761.7,0.00036986,14]
[377590510,1754448749862,-400.0,0.00036986,14]
[377590511,1754448749872,-400.0,0.00036986,14]
[377590512,1754448749884,-2875.37,0.00036986,14]
[377590513,1754448749894,-1961.2,0.00036986,14]
[377590514,1754448749903,-3362.96,0.00036986,14]
[377590515,1754448749913,-2855.56,0.00036986,14]
[377590516,1754448749923,-2258.55,0.00036986,14]
[377590517,1754448749934,-833.52,0.00036986,14]
[377590518,1754448749943,-2733.42,0.00036986,14]
[377590519,1754448750206,-400.0,0.00036986,14]
[377590520,1754448750218,-400.0,0.00036986,14]
[377590521,1754448750228,-400.0,0.00036986,14]
[377590522,1754448750238,-1888.87,0.00036986,14]
[377590523,1754448750247,-400.0,0.00036986,14]
[377590524,1754448750257,-400.0,0.00036986,14]
[377590525,1754448750266,-2484.35,0.00036986,14]
[377590526,1754448750276,-428.48,0.00036986,14]
[377590527,1754448750285,-406.59,0.00036986,14]
[377590528,1754448750295,-455.67,0.00036986,14]
[377590529,1754448750305,-409.76,0.00036986,14]
[377590530,1754448750314,-2248.43,0.00036986,14]
[377590531,1754448750325,-1187.63,0.00036986,14]
[377590532,1754448750334,-537.84,0.00036986,14]
[377590533,1754448750343,-1229.19,0.00036986,14]
[377590534,1754448750353,-725.39,0.00036986,14]
[377590535,1754448750362,-1862.83,0.00036986,14]
[377590536,1754448750372,-1987.91,0.00036986,14]
[377590537,1754448750381,-2156.58,0.00036986,14]
[377590538,1754448750391,-400.0,0.00036986,14]
[377590539,1754448750400,-2047.91,0.00036986,14]
[377590540,1754448750410,-551.67,0.00036986,14]
[377590541,1754448750420,-400.0,0.00036986,14]
[377590542,1754448750430,-1281.96,0.00036986,14]
[377590543,1754448750440,-1310.3,0.00036986,14]
[377590544,1754448750450,-450.47,0.00036986,14]
[377590545,1754448750460,-2884.45,0.00036986,14]
[377590546,1754448750469,-400.0,0.00036986,14]
[377590547,1754448750479,-1962.72,0.00036986,14]
[377590548,1754448750489,-400.0,0.00036986,14]
[377590549,1754448750498,-400.0,0.00036986,14]
[377590550,1754448750508,-1041.11,0.00036986,14]
[377590551,1754448750518,-2626.5,0.00036986,14]
[377590552,1754448750527,-1939.4,0.00036986,14]
[377590553,1754448750537,-743.81,0.00036986,14]
[377590554,1754448750549,-1720.47,0.00036986,14]
[377590555,1754448750559,-1253.31,0.00036986,14]
[377590556,1754448750568,-400.0,0.00036986,14]
[377590557,1754448750579,-833.02,0.00036986,14]
[377590558,1754448750589,-2527.58,0.00036986,14]
[377590559,1754448750598,-400.0,0.00036986,14]
[377590560,1754448750607,-1233.26,0.00036986,14]
[377590561,1754448750617,-677.09,0.00036986,14]
[377590562,1754448750626,-2742.82,0.00036986,14]
[377590563,1754448750635,-6570.38,0.00036986,14]
[377590564,1754448750646,-400.0,0.00036986,14]
[377590565,1754448750655,-400.0,0.00036986,2]
[377590566,1754448750665,-1089.73,0.00036986,14]
[377590567,1754448750675,-2514.73,0.00036986,14]
[377590568,1754448750685,-2050.4,0.00036986,14]
[377590569,1754448750696,-761.42,0.00036986,14]
[377590570,1754448750705,-479.36,0.00036986,14]
[377590571,1754448750715,-1510.11,0.00036986,14]
[377590572,1754448750725,-485.39,0.00036986,14]
[377590573,1754448750734,-2032.65,0.00036986,14]
[377590574,1754448750745,-400.0,0.00036986,14]
[377590575,1754448750754,-605.06,0.00036986,14]
[377590576,1754448750763,-2110.0,0.00036986,2]
[377590577,1754448750772,-953.45,0.00036986,14]
[377590578,1754448750782,-400.0,0.00036986,14]
[377590579,1754448750791,-2555.58,0.00036986,14]
[377590580,1754448750800,-294.73994191,0.00036986,14]
[377590581,1754448750811,-4421.93,0.00036986,14]
[377590582,1754448750830,-400.0,0.00036986,14]
[377590583,1754448750839,-814.86,0.00036986,14]
[377590584,1754448750849,-2529.46,0.00036986,14]
[377590585,1754448750858,-1009.38,0.00036986,14]
[377590586,1754448750868,-2230.29,0.00036986,14]
[377590587,1754448750881,-421.21,0.00036986,14]
[377590588,1754448750891,-3180.14,0.00036986,14]
[377590589,1754448750900,-155.37825052,0.00036986,14]
[377590590,1754448750910,-2402.56,0.00036986,14]
[377590591,1754448750921,-206.89,0.00036986,120]
[377590592,1754448750930,-400.0,0.00036986,14]
[377590593,1754448750940,-584.03,0.00036986,14]
[377590594,1754448750949,-2007.28,0.00036986,14]
[377590595,1754448750960,-299.18,0.00036986,14]
[377590596,1754448750970,-2184.0,0.00036986,14]
[377590597,1754448750979,-759.09,0.00036986,14]
[377590598,1754448750989,-679.71,0.00036986,14]
[377590599,1754448750998,-795.77,0.00036986,14]
[377590600,1754448751009,-3185.2,0.00036986,14]
[377590601,1754448751019,-812.95,0.00036986,14]
[377590602,1754448751029,-1680.57,0.00036986,14]
[377590603,1754448751039,-2432.32,0.00036986,14]
[377590604,1754448751051,-478.98,0.00036986,14]
[377590605,1754448751061,-400.0,0.00036986,14]
[377590606,1754448751070,-971.83,0.00036986,14]
[377590607,1754448751080,-2915.89,0.00036986,14]
[377590608,1754448751090,-400.0,0.00036986,14]
[377590609,1754448751100,-653.74,0.00036986,14]
[377590610,1754448751112,-1940.76,0.00036986,14]
[377590611,1754448751121,-400.0,0.00036986,14]
[377590612,1754448751132,-400.0,0.00036986,14]
[377590613,1754448751143,-408.83,0.00036986,14]
[377590614,1754448751154,-1082.53,0.00036986,14]
[377590615,1754448751164,-992.11,0.00036986,14]
[377590616,1754448751173,-2661.52,0.00036986,14]
[377590617,1754448751183,-1599.41,0.00036986,14]
[377590618,1754448751193,-816.39,0.00036986,14]
[377590619,1754448751202,-1313.46,0.00036986,14]
[377590620,1754448751212,-2286.88,0.00036986,14]
[377590621,1754448751221,-2443.54,0.00036986,14]
[377590622,1754448751230,-1013.74,0.00036986,14]
[377590623,1754448751239,-2142.87,0.00036986,14]
[377590624,1754448751249,-1019.92,0.00036986,14]
[377590625,1754448751258,-400.0,0.00036986,14]
[377590626,1754448751267,-2175.59,0.00036986,14]
[377590627,1754448751277,-3089.75,0.00036986,14]
[377590628,1754448751286,-1040.53,0.00036986,14]
[377590629,1754448751295,-290.19553922,0.00036986,14]
[377590630,1754448751304,-3761.33,0.00036986,14]
[377590631,1754448751314,-1546.2,0.00036986,14]
[377590632,1754448751325,-1315.11,0.00036986,14]
[377590633,1754448751334,-1867.43,0.00036986,14]
[377590634,1754448751344,-2061.99,0.00036986,14]
[377590635,1754448751353,-400.0,0.00036986,14]
[377590636,1754448751363,-1047.25,0.00036986,14]
[377590637,1754448751372,-400.0,0.00036986,14]
[377590638,1754448751381,-1432.92,0.00036986,14]
[377590639,1754448751391,-400.0,0.00036986,14]
[377590640,1754448751400,-400.0,0.00036986,14]
[377590641,1754448751409,-400.0,0.00036986,14]
[377590642,1754448751419,-1402.25,0.00036986,14]
[377590643,1754448751429,-1175.98,0.00036986,14]
[377590644,1754448751438,-828.22,0.00036986,14]
[377590645,1754448751448,-500.0,0.00036986,35]
[377590646,1754448751457,-400.0,0.00036986,14]
[377590647,1754448751466,-478.88,0.00036986,14]
[377590648,1754448751475,-732.62,0.00036986,14]
[377590649,1754448751484,-813.13,0.00036986,14]
[377590650,1754448751493,-431.16,0.00036986,14]
[377590651,1754448751502,-1451.6,0.00036986,14]
[377590652,1754448751511,-2113.48,0.00036986,14]
[377590653,1754448751520,-400.0,0.00036986,14]
[377590654,1754448751530,-453.4,0.00036986,14]
[377590655,1754448751539,-2192.19,0.00036986,14]
[377590656,1754448751549,-682.09,0.00036986,14]
[377590657,1754448751558,-3720.93,0.00036986,14]
[377590658,1754448751568,-578.92,0.00036986,14]
[377590659,1754448751578,-1902.77,0.00036986,14]
[377590660,1754448751587,-1870.07,0.00036986,14]
[377590661,1754448751596,-449.08,0.00036986,7]
[377590662,1754448751605,-400.0,0.00036986,14]
[377590663,1754448751615,-400.0,0.00036986,14]
[377590664,1754448751624,-744.99,0.00036986,14]
[377590665,1754448751633,-1145.83,0.00036986,14]
[377590666,1754448751642,-2903.16,0.00036986,14]
[377590667,1754448751651,-1448.11,0.00036986,14]
[377590668,1754448751660,-2132.59,0.00036986,14]
[377590669,1754448751670,-400.0,0.00036986,14]
[377590670,1754448751680,-3679.16,0.00036986,14]
[377590671,1754448751690,-2007.5,0.00036986,14]
[377590672,1754448751700,-400.0,0.00036986,14]
[377590673,1754448751709,-2062.82,0.00036986,14]
[377590674,1754448751719,-3514.4,0.00036986,14]
[377590675,1754448751728,-1179.27,0.00036986,14]
[377590676,1754448751737,-1366.96,0.00036986,14]
[377590677,1754448751747,-2716.46,0.00036986,14]
[377590678,1754448751756,-400.0,0.00036986,14]
[377590679,1754448751766,-400.0,0.00036986,14]
[377590680,1754448751775,-2707.72,0.00036986,14]
[377590681,1754448751784,-460.8,0.00036986,14]
[377590682,1754448751794,-2012.91,0.00036986,14]
[377590683,1754448751803,-1251.76,0.00036986,14]
[377590684,1754448751813,-1611.49,0.00036986,14]
[377590685,1754448751822,-2266.27,0.00036986,14]
[377590686,1754448751831,-604.96,0.00036986,14]
[377590687,1754448751841,-400.0,0.00036986,14]
[377590688,1754448751850,-3442.72,0.00036986,14]
[377590689,1754448751860,-801.6,0.00036986,14]
[377590690,1754448751870,-580.15,0.00036986,14]
[377590691,1754448751883,-606.74,0.00036986,14]
[377590692,1754448751892,-400.0,0.00036986,14]
[377590693,1754448751901,-3610.57,0.00036986,14]
[377590694,1754448751910,-2698.14,0.00036986,14]
[377590695,1754448751921,-881.76,0.00036986,14]
[377590696,1754448751930,-1967.92,0.00036986,14]
[377590697,1754448751939,-400.0,0.00036986,14]
[377590698,1754448751949,-2348.84,0.00036986,14]
[377590699,1754448751958,-826.11,0.00036986,14]
[377590700,1754448751967,-1152.57,0.00036986,14]
[377590701,1754448751977,-826.95,0.00036986,14]
[377590702,1754448751986,-958.68,0.00036986,14]
[377590703,1754448751997,-2097.04,0.00036986,14]
[377590704,1754448752007,-1738.83,0.00036986,14]
[377590705,1754448752016,-468.56,0.00036986,14]
[377590706,1754448752025,-400.0,0.00036986,14]
[377590707,1754448752034,-1550.41,0.00036986,14]
[377590708,1754448752044,-400.0,0.00036986,14]
[377590709,1754448752053,-2945.22,0.00036986,14]
[377590710,1754448752062,-400.0,0.00036986,14]
[377590711,1754448752071,-986.73,0.00036986,14]
[377590712,1754448752081,-2061.05,0.00036986,14]
[377590713,1754448752091,-522.01,0.00036986,14]
[377590714,1754448752100,-1971.84,0.00036986,14]
[377590715,1754448752110,-2216.79,0.00036986,14]
[377590716,1754448752119,-1605.08,0.00036986,14]
[377590717,1754448752128,-2744.57,0.00036986,14]
[377590718,1754448752137,-1022.7,0.00036986,14]
[377590719,1754448752146,-883.72,0.00036986,14]
[377590720,1754448752155,-400.0,0.00036986,14]
[377590721,1754448752165,-2625.94,0.00036986,14]
[377590722,1754448752174,-1176.86,0.00036986,14]
[377590723,1754448752183,-400.0,0.00036986,14]
[377590724,1754448752192,-2001.07,0.00036986,14]
[377590725,1754448752201,-1708.89,0.00036986,14]
[377590726,1754448752210,-1132.6,0.00036986,14]
[377590727,1754448752219,-2209.33,0.00036986,14]
[377590728,1754448752228,-2717.6,0.00036986,14]
[377590729,1754448752237,-1659.02,0.00036986,14]
[377590730,1754448752247,-2337.97,0.00036986,14]
[377590731,1754448752256,-1295.16,0.00036986,14]
[377590732,1754448752265,-1663.17,0.00036986,14]
[377590733,1754448752275,-1513.53,0.00036986,14]
[377590734,1754448752283,-2361.68,0.00036986,14]
[377590735,1754448752292,-2090.44,0.00036986,14]
[377590736,1754448752302,-425.69,0.00036986,14]
[377590737,1754448752311,-949.45,0.00036986,14]
[377590738,1754448752320,-400.0,0.00036986,14]
[377590739,1754448752331,-2974.22,0.00036986,14]
[377590740,1754448752340,-468.15,0.00036986,14]
[377590741,1754448752349,-702.26,0.00036986,14]
[377590742,1754448752359,-2095.59,0.00036986,14]
[377590743,1754448752368,-1148.8,0.00036986,14]
[377590744,1754448752377,-467.46,0.00036986,14]
[377590745,1754448752387,-1740.13,0.00036986,14]
[377590746,1754448752396,-1198.3,0.00036986,14]
[377590747,1754448752405,-954.12,0.00036986,14]
[377590748,1754448752418,-2021.48,0.00036986,14]
[377590749,1754448752427,-2962.89,0.00036986,14]
[377590750,1754448752436,-662.22,0.00036986,14]
[377590751,1754448752445,-2546.61,0.00036986,14]
[377590752,1754448752454,-2356.45,0.00036986,14]
[377590753,1754448752463,-504.61,0.00036986,14]
[377590754,1754448752472,-2130.93,0.00036986,14]
[377590755,1754448752483,-400.0,0.00036986,14]
[377590756,1754448752492,-2575.51,0.00036986,14]
[377590757,1754448752501,-423.2,0.00036986,14]
[377590758,1754448752510,-400.0,0.00036986,14]
[377590759,1754448752520,-1766.95,0.00036986,14]
[377590760,1754448752529,-400.0,0.00036986,14]
[377590761,1754448752538,-400.0,0.00036986,14]
[377590762,1754448752547,-3248.58,0.00036986,14]
[377590763,1754448752557,-856.83,0.00036986,14]
[377590764,1754448752567,-5306.84,0.00036986,14]
[377590765,1754448752578,-496.21,0.00036986,14]
[377590766,1754448752588,-547.97,0.00036986,14]
[377590767,1754448752598,-888.56,0.00036986,14]
[377590768,1754448752726,-727.35,0.00036986,14]
[377590769,1754448752736,-3016.17,0.00036986,14]
[377590770,1754448752745,-2668.39,0.00036986,14]
[377590771,1754448752754,-400.0,0.00036986,14]
[377590772,1754448752763,-3791.14,0.00036986,14]
[377590773,1754448752773,-400.0,0.00036986,14]
[377590774,1754448752782,-605.14,0.00036986,14]
[377590775,1754448752792,-975.71,0.00036986,14]
[377590776,1754448752801,-2054.01,0.00036986,14]
[377590777,1754448752810,-400.0,0.00036986,14]
[377590778,1754448752819,-400.0,0.00036986,14]
[377590779,1754448752829,-190.0,0.00036986,14]
[377590780,1754448752838,-3485.41,0.00036986,14]
[377590781,1754448752848,-2009.81,0.00036986,14]
[377590782,1754448752857,-400.0,0.00036986,14]
[377590783,1754448752866,-2179.98,0.00036986,14]
[377590784,1754448752879,-400.0,0.00036986,14]
[377590785,1754448752889,-1517.52,0.00036986,14]
[377590786,1754448752898,-1388.31,0.00036986,14]
[377590787,1754448752907,-957.04,0.00036986,14]
[377590788,1754448752917,-400.0,0.00036986,14]
[377590789,1754448752926,-1920.97,0.00036986,14]
[377590790,1754448752935,-615.01,0.00036986,14]
[377590791,1754448752944,-2558.14,0.00036986,14]
[377590792,1754448752954,-410.84,0.00036986,14]
[377590793,1754448752963,-1561.14,0.00036986,14]
[377590794,1754448752972,-1672.02,0.00036986,14]
[377590795,1754448752982,-2448.42,0.00036986,14]
[377590796,1754448752991,-1718.51,0.00036986,14]
[377590797,1754448753001,-2660.98,0.00036986,14]
[377590798,1754448753011,-1497.84,0.00036986,14]
[377590799,1754448753020,-1537.42,0.00036986,14]
[377590800,1754448753029,-400.0,0.00036986,14]
[377590801,1754448753039,-2286.3,0.00036986,14]
[377590802,1754448753048,-1193.12,0.00036986,14]
[377590803,1754448753058,-400.0,0.00036986,14]
[377590804,1754448753068,-2354.23,0.00036986,14]
[377590805,1754448753079,-818.29,0.00036986,2]
[377590806,1754448753088,-2817.66,0.00036986,14]
[377590807,1754448753099,-400.0,0.00036986,14]
[377590808,1754448753108,-400.0,0.00036986,14]
[377590809,1754448753119,-2306.54,0.00036986,14]
[377590810,1754448753128,-12433.87,0.00036986,14]
[377590811,1754448753139,-775.18,0.00036986,14]
[377590812,1754448753148,-400.0,0.00036986,14]
[377590813,1754448753158,-1789.7,0.00036986,14]